[Event "21st Open Gran Hotel Bali-A 2024"]
[Site "Benidorm"]
[Date "2024.11.30"]
[Round "3.13"]
[White "Tan, Jun Ying"]
[Black "Ochedzan, Tymon"]
[Result "1-0"]
[ECO "A13"]
[WhiteElo "2357"]
[BlackElo "2247"]
[Annotator "TA"]
[PlyCount "123"]
[EventDate "2024.11.26"]
[EventType "swiss"]
[EventCountry "ESP"]
[SourceTitle "playchess.com"]
[Source "ChessBase"]
[SourceQuality "1"]
[TimeControl "5400+30"]

{[%evp 9,123,-3,10,2,4,-6,22,17,35,37,29,-19,-16,-16,-12,-22,-28,-26,-12,-8,13,5,50,51,52,44,41,36,40,35,34,8,82,80,156,181,183,177,201,142,205,205,201,109,206,223,210,200,194,169,169,169,198,145,166,145,162,145,197,186,181,179,221,200,200,0,220,220,197,211,230,233,263,252,237,230,406,360,548,525,526,400,531,400,515,379,371,371,540,543,530,530,1007,987,897,883,29980,29981,29981,29982,29982,29983,29983,29984,29984,29985,29984,29985,29986,29987,29987,29988,29988,29989,29989,29990]} 1. Nf3 {[%emt 0:00:07]} Nf6 {[%emt 0:00:20]} 2. c4 {[%emt 0:00:19]} e6 {[%emt 0:01:41]} 3. e3 {[%emt 0:00:47]} b6 {[%emt 0:02:18]} 4. g3 {[%emt 0:00:20]} Bb7 {[%emt 0:01:31]} 5. Bg2 {[%emt 0:00:19]} Be7 {[%emt 0:08:36]} 6. O-O {[%emt 0:00:38]} O-O {[%emt 0:00:38]} 7. b3 {[%emt 0:00:26]} d6 {[%emt 0:02:26]} 8. d4 {[%emt 0:01:53]} Nbd7 {[%emt 0:01:34]} 9. Bb2 {[%emt 0:00:13]} c5 {[%emt 0:00:57] [#]} 10. d5 {[%emt 0:11:50]} exd5 $11 {[%emt 0:04:28]} 11. Nh4 {[%emt 0:01:13]} Ne4 {[%emt 0:06:54]} 12. cxd5 {[%emt 0:00:42]} Bxh4 {[%emt 0:03:47]} 13. Bxe4 {[%emt 0:02:57][%cal Od1h5]} Bf6 {[%emt 0:02:44]} 14. Nc3 {[%emt 0:00:21]} Re8 {[%emt 0:03:35] ...Bxc3 would now be deadly.} 15. Qc2 {[%emt 0:00:24]} b5 {[%emt 0:09:19]} 16. Bxh7+ {[%emt 0:05:41]} (16. Nxb5 Rxe4 17. Qxe4 Bxb2 18. Nxd6 Ba6 (18... Nf6 $2 19. Nxb7 Nxe4 20. Nxd8 $19) 19. Nxf7 Qf6 $15 (19... Kxf7 20. Qe6+ Kf8 21. Qxa6 $17)) 16... Kh8 $1 {[%emt 0:00:58]} 17. Bf5 {[%emt 0:15:52]} (17. Nxb5 Bxb2 (17... Bxd5 $2 18. Rad1 $18) 18. Nxd6 Ne5 (18... Bxd5 19. Rad1 $16) 19. Nxb7 Nf3+ 20. Kh1 Qxd5 21. Qxb2 Kxh7 22. Qc2+ g6 23. Nxc5 (23. Qxc5 $2 Qxb7 24. e4 Rxe4 $19) 23... Ne1+ 24. e4 Nxc2 $17) 17... b4 {[%emt 0:04:55]} 18. Ne4 {[%emt 0:01:36]} Bxb2 {[%emt 0:01:28]} 19. Qxb2 {[%emt 0:04:09]} Nf8 {[%emt 0:06:16][%cal Oe8e5]} 20. Qc2 {[%emt 0:18:50]} Re5 {[%emt 0:02:22] [#]} (20... Qe7 $11 {remains equal.}) 21. Nd2 $1 $16 {[%emt 0:03:47]} g6 {[%emt 0:07:03]} ({Black should try} 21... Qf6) 22. Be4 {[%emt 0:01:01]} f5 {[%emt 0:03:21]} 23. Bg2 {[%emt 0:00:06]} Qf6 {[%emt 0:01:40]} 24. Qb2 {[%emt 0:04:54]} Re6 {[%emt 0:02:54]} (24... Nh7 $16 25. Rfd1 Rxd5 26. Qxf6+ Nxf6 27. Bxd5 Bxd5) 25. Qxf6+ {[%emt 0:00:23]} Rxf6 {[%emt 0:00:04]} 26. a4 {[%emt 0:24:42]} (26. a3 $18) 26... bxa3 {[%emt 0:01:05]} (26... Kg7 $16 27. Rfe1 g5) 27. Rxa3 $18 {[%emt 0:00:00]} Nd7 {[%emt 0:00:24]} 28. Nc4 {[%emt 0:00:00]} Nb6 {[%emt 0:03:02]} 29. Rfa1 {[%emt 0:00:00]} Nxc4 {[%emt 0:00:20]} 30. bxc4 {[%emt 0:00:00]} Rf7 {[%emt 0:00:13]} 31. Ra5 {[%emt 0:00:00]} (31. Rxa7 Rxa7 32. Rxa7 Bxd5 $16) ({Better is} 31. h4 $18) 31... Kg7 {[%emt 0:00:47]} 32. h4 {[%emt 0:00:00]} Kf6 {[%emt 0:00:30]} 33. Kf1 {[%emt 0:00:00]} (33. Rxa7 $6 Rxa7 34. Rxa7 Bxd5 $16) 33... Kg7 {[%emt 0:01:44]} (33... Bc8 $16 34. Ke2 g5 35. hxg5+ Kxg5 36. f4+ Kg6) 34. Ke2 {[%emt 0:00:00]} (34. Rxa7 Rxa7 35. Rxa7 Bxd5 $11) 34... Kf6 {[%emt 0:00:06]} 35. Kd3 {[%emt 0:00:00]} (35. Rxa7 Rxa7 36. Rxa7 Bxd5 37. Rxf7+ Bxf7 $14) 35... Kg7 {[%emt 0:00:14]} 36. R1a2 {[%emt 0:00:00]} ({Don't do} 36. Rxa7 Rxa7 37. Rxa7 Bxd5 38. Rxf7+ Bxf7 $16) 36... Kf6 {[%emt 0:00:10]} 37. Ra1 {[%emt 0:03:18]} (37. Rxa7 Rxa7 38. Rxa7 Bxd5 39. Rxf7+ Bxf7 $16) 37... Kg7 $1 {[%emt 0:18:36]} 38. Bf1 {[%emt 0:00:30]} (38. Rxa7 Rxa7 39. Rxa7 Bxd5 40. Rxf7+ Bxf7 $16) 38... Kf6 {[%emt 0:00:00]} 39. Be2 {[%emt 0:00:03]} Kg7 {[%emt 0:00:00]} 40. Kc3 {[%emt 0:00:46]} (40. Rxa7 Rxa7 41. Rxa7 Bxd5 42. Rxf7+ Bxf7 $14) 40... Kf6 {[%emt 0:00:00]} 41. Rxa7 {[%emt 0:00:33]} Rxa7 {[%emt 0:00:00]} 42. Rxa7 {[%emt 0:00:01][%mdl 4096] Endgame KRB-KRB. White is two pawns up.} Ke5 $2 {[%emt 0:00:00]} (42... Bxd5 43. Ra6 Be6 44. Rxd6 Ra7) 43. Ra1 {[%emt 0:00:41]} Ke4 {[%emt 0:00:00]} (43... Kf6 $142 44. Kd2 Rf8) 44. Kd2 {[%emt 0:00:18] Intending f4 and mate.} Ke5 {[%emt 0:00:00]} 45. Bd3 {[%emt 0:00:09]} Rg7 {[%emt 0:00:00]} 46. f4+ {[%emt 0:00:41]} Kf6 {[%emt 0:00:00]} 47. e4 {[%emt 0:00:35]} fxe4 {[%emt 0:00:00]} 48. Bxe4 {[%emt 0:00:01]} Re7 {[%emt 0:00:00]} (48... Bc8 {was worth a try.} 49. Ra8 Bf5) 49. Bd3 {[%emt 0:00:35]} Bc8 {[%emt 0:00:00]} 50. Ra8 {[%emt 0:00:53]} Re8 {[%emt 0:00:00]} 51. g4 {[%emt 0:00:42][%cal Bg3g4,Bg4g5][%mdl 32] And now g5+ would win.} Bd7 {[%emt 0:00:00]} 52. g5+ {[%emt 0:01:04]} Ke7 {[%emt 0:00:00]} 53. Rxe8+ {[%emt 0:00:06]} Bxe8 {[%emt 0:00:00] KB-KB. White is two pawns up.} 54. f5 {[%emt 0:00:20]} gxf5 {[%emt 0:00:00]} 55. Bxf5 {[%emt 0:00:02]} Bh5 {[%emt 0:00:00]} 56. Ke3 {[%emt 0:00:06]} Kf7 {[%emt 0:00:00]} 57. Bd3 {[%emt 0:00:07]} Bd1 {[%emt 0:00:00]} 58. Be2 {[%emt 0:00:09]} Bb3 {[%emt 0:00:00]} 59. h5 {[%emt 0:00:09]} Kg8 {[%emt 0:00:00]} 60. Bd3 {[%emt 0:00:36]} Ba4 {[%emt 0:00:00]} 61. Kf4 {[%emt 0:00:22]} Bd7 {[%emt 0:00:00]} 62. g6 {[%emt 0:05:13]} 1-0

[Event "21st Open Gran Hotel Bali-A 2024"]
[Site "Benidorm"]
[Date "2024.11.30"]
[Round "3.14"]
[White "Sanz Wawer, Daniel"]
[Black "Turski, Bartlomiej"]
[Result "1/2-1/2"]
[ECO "E81"]
[WhiteElo "2254"]
[BlackElo "2345"]
[Annotator "TA"]
[PlyCount "56"]
[EventDate "2024.11.26"]
[EventType "swiss"]
[EventCountry "ESP"]
[SourceTitle "playchess.com"]
[Source "ChessBase"]
[SourceQuality "1"]
[TimeControl "5400+30"]

{[%evp 12,56,30,24,34,25,46,-9,-11,-9,-24,0,0,-41,-49,-47,-42,-72,-72,-74,-83,-67,-70,-124,-18,-17,-28,-17,-24,-34,0,0,0,0,0,0,0,-17,-32,-22,0,-2,0,0,0,-2,0]} 1. d4 {[%emt 0:00:04]} Nf6 {[%emt 0:00:20]} 2. c4 {[%emt 0:00:17]} g6 {[%emt 0:00:06]} 3. Nc3 {[%emt 0:00:04]} Bg7 {[%emt 0:00:06]} 4. e4 {[%emt 0:00:09]} d6 {[%emt 0:00:03]} 5. f3 {[%emt 0:00:07]} O-O {[%emt 0:00:14]} 6. Nge2 {[%emt 0:00:05]} a6 {[%emt 0:00:08]} 7. Be3 {[%emt 0:00:31]} Nbd7 {[%emt 0:00:06][%cal Ob7b5]} 8. Qd2 {[%emt 0:00:38]} b5 {[%emt 0:00:10]} 9. cxb5 {[%emt 0:01:41]} (9. h4 $14) 9... axb5 $11 {[%emt 0:00:08]} 10. Nxb5 {[%emt 0:00:45]} c6 {[%emt 0:00:06]} 11. Nbc3 {[%emt 0:02:13]} e5 {[%emt 0:04:06]} 12. dxe5 {[%emt 0:13:45]} Nxe5 {[%emt 0:00:09]} 13. Nd4 {[%emt 0:00:25]} d5 {[%emt 0:00:30]} 14. exd5 {[%emt 1:16:46]} Nxd5 {[%emt 0:00:18]} 15. Nxd5 {[%emt 0:00:00]} (15. Nxc6 $2 Nxc6 16. Nxd5 Rb8 $19) 15... Qxd5 {[%emt 0:00:04]} 16. Nb3 {[%emt 0:00:00]} Qe6 {[%emt 0:03:25]} 17. Be2 {[%emt 0:00:00] [#]} ({White should try} 17. h3 $15) 17... Nc4 {[%emt 0:05:21]} ({Black should try} 17... Qxb3 $1 $17 18. axb3 Rxa1+ 19. Bd1 Ba6) 18. Bxc4 {[%emt 0:00:00]} Qxc4 {[%emt 0:00:04]} 19. Kf2 {[%emt 0:00:00]} Qh4+ {[%emt 0:01:11][%mdl 1024] Black has compensation.} 20. g3 {[%emt 0:00:00]} Qh3 {[%emt 1:23:55]} 21. Bd4 {[%emt 0:00:00]} Bh6 {[%emt 0:00:00] A strong pair of Bishops.} 22. Be3 {[%emt 0:00:00]} Bg7 {[%emt 0:00:00]} 23. Bd4 {[%emt 0:00:00]} Rd8 {[%emt 0:00:00]} 24. Qe3 {[%emt 0:00:00]} Bxd4 {[%emt 0:00:00]} 25. Nxd4 {[%emt 0:00:00][%cal Bb3d4,Bd4e2,Be2f4][%mdl 32]} Bb7 {[%emt 0:00:00]} 26. Ne2 {[%emt 0:00:00] [#]} c5 $1 {[%emt 0:00:00]} 27. Nf4 {[%emt 0:00:00]} Qf5 {[%emt 0:00:00] Threatens to win with ...Qc2+.} 28. Rhd1 {[%emt 0:00:00]} Qc2+ {[%emt 0:00:00]} 1/2-1/2

[Event "21st Open Gran Hotel Bali-A 2024"]
[Site "Benidorm"]
[Date "2024.11.30"]
[Round "3.15"]
[White "Movsziszian, Karen"]
[Black "Evenshaug, Amadeus Hestvik"]
[Result "0-1"]
[ECO "C00"]
[WhiteElo "2439"]
[BlackElo "2132"]
[Annotator "TA"]
[PlyCount "85"]
[EventDate "2024.11.26"]
[EventType "swiss"]
[EventCountry "ESP"]
[SourceTitle "playchess.com"]
[Source "ChessBase"]
[SourceQuality "1"]
[TimeControl "5400+30"]

{[%evp 19,85,-44,-41,-47,-41,-43,-34,-44,0,-44,-40,-59,-51,-85,-85,-123,-115,-133,-116,-133,-125,-183,-169,-201,-182,-220,-214,-220,-225,-183,-160,-220,-147,-211,-142,-118,-125,-193,-81,-86,-86,-219,-192,-914,-490,-486,-483,-478,-478,-426,-327,-379,-358,-497,-495,-496,-439,-436,-112,-789,-843,-752,-818,-835,-838,-803,-806,-731]} 1. g3 {[%emt 0:00:03]} d5 {[%emt 0:01:30]} 2. Nf3 {[%emt 0:00:14]} Nf6 {[%emt 0:00:35]} 3. Bg2 {[%emt 0:00:07]} e6 {[%emt 0:00:16]} 4. O-O {[%emt 0:00:24]} Be7 {[%emt 0:00:38]} 5. d3 {[%emt 0:00:29]} O-O {[%emt 0:00:39]} 6. Nbd2 {[%emt 0:00:08]} c5 {[%emt 0:00:21]} 7. e4 {[%emt 0:00:29]} Nc6 {[%emt 0:00:33]} 8. Re1 {[%emt 0:00:31]} b5 {[%emt 0:01:16]} 9. e5 {[%emt 0:01:14]} Nd7 {[%emt 0:00:18]} 10. Nf1 {[%emt 0:00:02]} Bb7 {[%emt 0:00:16]} 11. h4 {[%emt 0:00:13]} a5 {[%emt 0:00:25]} 12. N1h2 {[%emt 0:01:02]} a4 {[%emt 0:00:24]} 13. a3 {[%emt 0:00:04] Black is slightly better.} Qb6 {[%emt 0:03:07]} 14. Bf4 {[%emt 0:04:45]} Rfc8 {[%emt 0:01:44]} 15. Qe2 {[%emt 0:07:45]} b4 {[%emt 0:04:14]} 16. Red1 {[%emt 0:22:34] [#]} c4 $1 {[%emt 0:17:17]} 17. dxc4 {[%emt 0:16:20]} (17. Be3 Qa6) 17... bxa3 {[%emt 0:01:28]} 18. bxa3 {[%emt 0:00:45]} Ba6 {[%emt 0:00:24]} 19. Nd2 {[%emt 0:05:59]} Na5 {[%emt 0:07:25][%cal Ra5c4]} 20. Qg4 {[%emt 0:01:02]} (20. Ng4 $17 Nxc4 (20... Bxc4 21. Nxc4 Nxc4 22. Qf3 $17) 21. Nxc4 Bxc4 (21... Rxc4 22. Qd2 $17) 22. Qf3) 20... Nxc4 $19 {[%emt 0:00:55]} (20... Bxc4 21. Rab1 Qa6 22. Re1 $17) 21. Nxc4 {[%emt 0:01:37]} Rxc4 {[%emt 0:01:07]} 22. Bxd5 {[%emt 0:12:00]} Nxe5 {[%emt 0:08:36]} (22... exd5 23. Qxd7 Bc5 24. Rab1 $15) 23. Qh5 {[%emt 0:00:01] [#] Rab1 is the strong threat.} exd5 {[%emt 0:00:38]} (23... Rxc2 24. Be3 (24. Bxa8 $2 Qxf2+ 25. Kh1 Qxh2#) 24... Qc7 (24... Bc5 $2 25. Rab1 $18) 25. Bxa8 $11) 24. Bxe5 {[%emt 0:00:11]} Rxc2 {[%emt 0:00:35]} 25. Bd4 {[%emt 0:00:12]} (25. Qf5 $17 Re2 26. Bd4) 25... Qg6 $40 {[%emt 0:07:20][%mdl 128] Black has strong attack. Active counter play!} 26. Qxd5 {[%emt 0:01:13]} (26. Qxg6 $17 hxg6 27. Ng4) 26... Rd8 {[%emt 0:00:58]} 27. Qe5 {[%emt 0:01:28]} Bxh4 {[%emt 0:03:20] This pair of bishops is nice.} 28. Bb2 {[%emt 0:02:00]} (28. Nf3 $17 {was worth a try.} Bf6 29. Qa5) 28... Rdc8 {[%emt 0:03:10]} (28... h6 $19 {and Black stays clearly on top. aiming for ...Bf6.} 29. Qxg7+ Qxg7 30. Bxg7 Kxg7 31. gxh4 Rxd1+ 32. Rxd1 Ra2) 29. Rd6 $17 {[%emt 0:03:03]} Bf6 {[%emt 0:00:24] Chess con chili.} 30. Rad1 {[%emt 0:00:02]} (30. Qf4 $17 {might work better.} Rxb2 (30... R2c4 31. Qf3 $15) 31. Rxa6) 30... h6 $19 {[%emt 0:04:42]} (30... Rxb2 31. Rd8+ Rxd8 32. Rxd8+ Bxd8 33. Qe8#) 31. Qa5 $2 {[%emt 0:01:27]} (31. Rxa6 Bxe5 (31... Rxb2 $2 32. Qf4 $19) 32. Rxg6 Rxb2 (32... Bxb2 $2 33. Ra6 $17) 33. Ra6) 31... Rxb2 {[%emt 0:03:22]} 32. Qxa6 {[%emt 0:02:18]} Rcc2 {[%emt 0:00:22]} 33. Qa8+ {[%emt 0:01:55]} Kh7 {[%emt 0:00:04]} 34. Rf1 {[%emt 0:00:16]} Qf5 {[%emt 0:00:57][%cal Rc2f2] Prevents Qf3.} 35. Nf3 {[%emt 0:02:48]} Rc3 {[%emt 0:08:21]} 36. Kg2 {[%emt 0:02:59]} Rxa3 {[%emt 0:00:59]} 37. Nd2 {[%emt 0:00:27]} Be5 {[%emt 0:08:35]} 38. Rd8 {[%emt 0:00:15]} Raa2 $2 {[%emt 0:01:58]} (38... Qg4 $19 {[%cal Ra3g3] is more deadly. ( -> ...Rxg3+!)} 39. Rh1 Rxd2 (39... Bxg3 $2 40. Rh8+ Kg6 41. R1xh6+ Kg5 42. Qd8+ f6 43. Rh5+ Qxh5 44. Ne4+ Kh4 45. Qe8 $18) 40. Rxd2 Bxg3) 39. Ne4 {[%emt 0:01:04][%mdl 8192]} (39. Rh8+ $17 Kg6 40. Nf3) 39... Re2 {[%emt 0:01:39] Black is clearly winning.} 40. Rh8+ {[%emt 0:01:02]} Kg6 {[%emt 0:00:04]} 41. Qc6+ {[%emt 0:00:25]} Bf6 {[%emt 0:00:06]} 42. Re8 {[%emt 0:00:09]} a3 {[%emt 0:01:12] And now ...Rac2 would win.} 43. g4 {[%emt 0:05:27] Weighted Error Value: White=0.54/Black=0.42.  Loses game:     	White=1     	---        Missed win:     	---       	Black=1      Mistake:       	White=6     	Black=1      Inaccurate:     	White=4     	Black=3      OK:         	White=10    	Black=9      Best:        	---       	Black=7} 0-1

[Event "21st Open Gran Hotel Bali-A 2024"]
[Site "Benidorm"]
[Date "2024.11.30"]
[Round "3.16"]
[White "Garcia Gimenez, Santiago"]
[Black "Castellanos Rodriguez, Renier"]
[Result "0-1"]
[ECO "B92"]
[WhiteElo "2184"]
[BlackElo "2472"]
[Annotator "TA"]
[PlyCount "78"]
[EventDate "2024.11.26"]
[EventType "swiss"]
[EventCountry "ESP"]
[SourceTitle "playchess.com"]
[Source "ChessBase"]
[SourceQuality "1"]
[TimeControl "5400+30"]

{[%evp 16,78,15,1,0,-17,-8,-10,-2,-2,0,-2,-11,-7,0,0,0,-22,0,-16,0,-8,0,-16,0,-10,-12,-28,0,-18,-30,-48,-34,-45,-31,-32,0,-13,0,-12,-16,-7,-14,-23,-21,-49,-34,-31,-34,-51,-27,-91,-85,-94,-96,-97,0,-8,-9,-23,0,-2841,-2841,-11505,-10245]} 1. e4 {[%emt 0:03:51]} c5 {[%emt 0:00:10]} 2. Nf3 {[%emt 0:00:08]} d6 {[%emt 0:00:28]} 3. d4 {[%emt 0:00:08]} cxd4 {[%emt 0:00:05]} 4. Nxd4 {[%emt 0:00:06]} Nf6 {[%emt 0:00:04]} 5. Nc3 {[%emt 0:00:06]} a6 {[%emt 0:00:03]} 6. Be2 {[%emt 0:00:05]} e5 {[%emt 0:01:35]} 7. Nb3 {[%emt 0:00:05]} Be7 {[%emt 0:00:35]} 8. O-O {[%emt 0:00:13]} Be6 {[%emt 0:02:08]} 9. f4 {[%emt 0:00:08]} b5 {[%emt 0:05:20]} 10. f5 {[%emt 0:02:11]} Bc8 {[%emt 0:04:49]} 11. a4 {[%emt 0:04:15]} b4 {[%emt 0:01:05] The position is equal.} 12. Nd5 {[%emt 0:00:29]} Nxd5 {[%emt 0:01:39]} 13. Qxd5 {[%emt 0:00:24]} Qb6+ {[%emt 0:00:12]} 14. Kh1 {[%emt 0:00:12]} Bb7 {[%emt 0:00:07]} 15. Qd3 {[%emt 0:01:47]} Nd7 {[%emt 0:03:08]} 16. Be3 {[%emt 0:10:26]} Qc7 {[%emt 0:01:02]} 17. Bf3 {[%emt 0:01:17]} O-O {[%emt 0:03:00]} 18. c3 {[%emt 0:09:13]} bxc3 {[%emt 0:05:20]} 19. Rac1 {[%emt 0:01:30]} Nf6 {[%emt 0:07:33]} 20. Rxc3 {[%emt 0:00:12]} Qd8 {[%emt 0:00:08]} 21. Rd1 {[%emt 0:04:56]} h6 {[%emt 0:06:39]} 22. a5 {[%emt 0:01:46]} Rc8 {[%emt 0:01:15]} 23. Bb6 {[%emt 0:02:25]} Rxc3 {[%emt 0:02:46]} 24. bxc3 {[%emt 0:01:15]} Qa8 {[%emt 0:01:38][%cal Rb7e4]} 25. Nd2 {[%emt 0:00:13][%cal Bb3d2,Bd2c4,Bc4e5,Be5f3][%mdl 32]} d5 {[%emt 0:04:30]} 26. exd5 {[%emt 0:00:14]} Nxd5 {[%emt 0:01:06]} 27. Nc4 {[%emt 0:02:29]} Nf4 {[%emt 0:02:00][%csl LRd3,LRg2]} 28. Bxb7 {[%emt 0:00:50]} (28. Qf1 {simplifies} Bxf3 29. Qxf3 Qxf3 30. gxf3 Rc8 31. Nxe5 Rxc3 32. Nd7) 28... Qxb7 {[%emt 0:00:07][%csl Gf4][%cal Rb7g2]} 29. Qc2 {[%emt 0:02:23]} Rc8 {[%emt 0:16:46]} 30. Nxe5 {[%emt 0:00:24] [#]} Rxc3 $1 $40 {[%emt 0:00:37][%mdl 128] Black mounts an attack.} 31. Qf2 {[%emt 0:08:26]} Bg5 {[%emt 0:04:11]} 32. Nf3 {[%emt 0:07:35]} Bf6 {[%emt 0:02:55]} 33. Bd4 {[%emt 0:02:56]} (33. Nd2 $11 {remains equal.} Bg5 34. Nf3) 33... Rd3 {[%emt 0:11:01] Black is more active.} 34. Rxd3 {[%emt 0:01:26]} Nxd3 {[%emt 0:00:09]} 35. Qc2 {[%emt 0:03:25]} Qe4 {[%emt 0:02:34]} (35... Bxd4 $17 36. Nxd4 Qb4) 36. Bxf6 {[%emt 0:01:28]} gxf6 {[%emt 0:00:06]} 37. Qc8+ {[%emt 0:03:19]} Kg7 {[%emt 0:00:14] Threatens to win with ...Qe2.} 38. Qxa6 $2 {[%emt 0:00:39][%mdl 8192] [#]} (38. h3 $11) 38... Qe2 $1 $19 {[%emt 0:00:31] ( -> ...Qf1+)} 39. h3 {[%emt 0:00:28]} Nf2+ {[%emt 0:00:09] Weighted Error Value: White=0.34/Black=0.09 (flawless) .  Loses game:     	White=1     	---        Mistake:       	White=1     	Black=1      Inaccurate:     	White=2     	Black=1      OK:         	White=12    	Black=12     Best:        	---       	Black=2      Strong:       	---       	Black=1      Brilliant:      	---       	Black=1} 0-1

[Event "21st Open Gran Hotel Bali-A 2024"]
[Site "Benidorm"]
[Date "2024.11.30"]
[Round "3.17"]
[White "Wirig, Anthony"]
[Black "Korneev Leskova, Svyatoslav"]
[Result "1-0"]
[ECO "A85"]
[WhiteElo "2427"]
[BlackElo "2181"]
[Annotator "TA"]
[PlyCount "111"]
[EventDate "2024.11.26"]
[EventType "swiss"]
[EventCountry "ESP"]
[SourceTitle "playchess.com"]
[Source "ChessBase"]
[SourceQuality "1"]
[TimeControl "5400+30"]

{[%evp 9,111,50,48,41,58,50,66,60,67,66,74,78,83,77,82,65,71,61,90,76,85,85,85,88,98,102,97,65,73,75,85,63,87,52,68,51,75,75,69,69,72,72,136,71,104,106,93,96,79,61,71,70,86,99,68,27,31,33,27,13,17,8,10,23,86,88,82,0,8,10,11,8,8,0,53,51,51,48,42,19,94,51,216,203,251,169,366,362,354,242,844,833,751,768,650,497,1294,1234,1565,1533,1331,1081,1427,728]} 1. d4 {[%emt 0:00:03]} e6 {[%emt 0:05:09]} 2. c4 {[%emt 0:00:18]} f5 {[%emt 0:01:16]} 3. a3 {[%emt 0:01:58]} Nf6 {[%emt 0:01:45]} 4. Nc3 {[%emt 0:00:08]} d5 {[%emt 0:07:00]} 5. Bf4 {[%emt 0:02:02]} Bd6 {[%emt 0:03:29]} 6. e3 {[%emt 0:01:40]} c6 {[%emt 0:00:42]} 7. Nf3 {[%emt 0:02:00]} O-O {[%emt 0:02:33]} 8. Bd3 {[%emt 0:02:54] White is slightly better.} Bxf4 {[%emt 0:16:35]} 9. exf4 {[%emt 0:00:18]} dxc4 {[%emt 0:00:47]} 10. Bxc4 {[%emt 0:00:13]} Qd6 {[%emt 0:00:08]} 11. g3 {[%emt 0:17:34]} Nbd7 {[%emt 0:01:48]} 12. Qe2 {[%emt 0:03:38]} Nb6 {[%emt 0:07:09]} 13. Bb3 {[%emt 0:03:01]} Bd7 {[%emt 0:06:42]} 14. O-O {[%emt 0:07:08]} Rad8 {[%emt 0:07:49]} 15. Rfe1 {[%emt 0:02:40]} Rfe8 {[%emt 0:00:46]} 16. Rac1 {[%emt 0:01:35]} Re7 {[%emt 0:06:49]} 17. Qe5 {[%emt 0:11:37]} Qxe5 {[%emt 0:00:09]} 18. Rxe5 {[%emt 0:00:06]} Kf8 {[%emt 0:02:25]} 19. Rce1 {[%emt 0:03:25]} Nbd5 {[%emt 0:06:39]} 20. Ng5 {[%emt 0:06:19]} Rde8 {[%emt 0:02:20]} 21. R5e2 {[%emt 0:02:25]} Nc7 {[%emt 0:13:22]} 22. Nd1 {[%emt 0:05:09] White has more active pieces.} Ncd5 {[%emt 0:01:34]} 23. Ne3 {[%emt 0:01:18]} h6 {[%emt 0:01:47]} 24. Nf3 {[%emt 0:00:19] Strongly threatening Nh4.} Nxe3 {[%emt 0:00:31]} 25. Rxe3 {[%emt 0:04:57]} Nd5 {[%emt 0:00:18]} ({Black should try} 25... Rd8) 26. R3e2 {[%emt 0:00:17]} (26. Bxd5 $142 cxd5 27. Ne5) 26... Rd8 {[%emt 0:00:39]} 27. Bxd5 {[%emt 0:01:55]} cxd5 {[%emt 0:00:04] Black is weak on the dark squares} 28. Ne5 {[%emt 0:00:14] Ng6+ would now be deadly.} Ke8 {[%emt 0:02:23]} 29. f3 {[%emt 0:07:02]} Rc8 {[%emt 0:00:46]} 30. g4 {[%emt 0:00:19]} fxg4 {[%emt 0:01:23]} 31. fxg4 {[%emt 0:00:05]} Kd8 {[%emt 0:00:22]} 32. g5 {[%emt 0:04:04][%cal Of4f5]} Bb5 {[%emt 0:00:43]} 33. Rg2 {[%emt 0:02:46]} Be8 {[%emt 0:00:23]} 34. gxh6 {[%emt 0:01:11]} gxh6 {[%emt 0:00:04]} 35. Rg8 {[%emt 0:00:02] aiming for Ng6.} Rcc7 $1 {[%emt 0:00:28]} ({Not} 35... Rc2 $2 36. Ng6 $18) 36. Kf2 {[%emt 0:01:07]} Rg7 {[%emt 0:00:22] Repels Ng6} (36... Rc2+ $11 {remains equal.} 37. Kg3 Kc7) 37. Rxg7 $1 $16 {[%emt 0:00:45]} Rxg7 {[%emt 0:00:04][%mdl 4096] Endgame. KRB-KRN} 38. Rc1 {[%emt 0:00:02]} (38. Nd3 $1 $16) 38... Bf7 {[%emt 0:00:56]} 39. Rc3 {[%emt 0:00:39]} Be8 {[%emt 0:00:23]} 40. Rh3 {[%emt 0:02:36]} h5 {[%emt 0:00:06]} 41. Rc3 {[%emt 0:00:33]} Rg8 {[%emt 0:01:10]} (41... b6 $11) 42. Rg3 $14 {[%emt 0:00:25]} Rxg3 {[%emt 0:00:31]} 43. Kxg3 {[%emt 0:02:36] KB-KN} Ke7 {[%emt 0:00:08]} 44. f5 {[%emt 0:00:20]} exf5 {[%emt 0:00:35] [#]} (44... Kf6 $1 $11) 45. Nd3 $1 $16 {[%emt 0:00:01]} Kf6 $2 {[%emt 0:01:00] [#] A mistake that costs the game.} ({Better is} 45... f4+ $1 $14 46. Kxf4 (46. Nxf4 Kf6 $16) 46... Bb5) 46. Nf4 $1 $18 {[%emt 0:00:02]} Ba4 {[%emt 0:00:56]} 47. Nxd5+ {[%emt 0:02:24]} Kg5 $2 {[%emt 0:00:26]} (47... Ke6 {was worth a try.} 48. Nf4+ Kd6) 48. h4+ {[%emt 0:00:17]} Kg6 {[%emt 0:00:05]} 49. Kf4 {[%emt 0:00:12] Black must now prevent Ke5.} Bc2 $2 {[%emt 0:00:57]} (49... Bb3 50. Ne7+ Kf6 51. Nxf5 Ke6) 50. Ke5 {[%emt 0:00:06] White is clearly winning.} Kf7 {[%emt 0:00:29]} 51. Ne3 {[%emt 0:00:50][%csl LRc2,LRf5]} Bd3 {[%emt 0:00:25]} 52. Nxf5 {[%emt 0:00:06]} b6 {[%emt 0:00:35]} (52... Kg6 $142) 53. Nd6+ {[%emt 0:00:21]} Ke7 {[%emt 0:00:22]} 54. Nc8+ {[%emt 0:00:11]} Kd7 {[%emt 0:00:05]} 55. Nxa7 {[%emt 0:00:07]} b5 {[%emt 0:00:13]} 56. d5 {[%emt 0:00:14] Weighted Error Value: White=0.12 (very precise) /Black=0.24 (precise) .  Loses game:     	---       	Black=1      Mistake:       	White=2     	Black=6      Inaccurate:     	White=5     	Black=2      OK:         	White=13    	Black=15     Best:        	White=4     	Black=2      Strong:       	White=3     	Black=1} 1-0